bitfinex/quotes_BTCUSD_20220303
["timestamp","ask_amount","ask_price","bid_price","bid_amount"]
[1646341500005,0.15,41881.0,41861.0,0.00131069]
[1646341500006,0.01133955,41862.0,41861.0,0.00131069]
[1646341500207,0.01133955,41862.0,41861.0,0.36463969]
[1646341500404,0.01133955,41862.0,41859.0,0.00068587]
[1646341500608,0.01133955,41862.0,41861.0,0.52147348]
[1646341500809,0.01133955,41862.0,41861.0,0.50647348]
[1646341501053,0.00633955,41862.0,41861.0,0.50647348]
[1646341501251,0.059746,41867.0,41861.0,0.50647348]
[1646341501252,0.059746,41867.0,41862.0,0.9]
[1646341501454,0.37392999,41881.0,41863.0,0.69201178]
[1646341501656,0.96392883,41878.0,41870.0,0.1895298]
[1646341501852,0.059735,41871.0,41865.0,0.19118746]
[1646341502052,0.059735,41871.0,41866.0,0.363629]
[1646341502454,0.734104,41880.0,41866.0,0.363629]
[1646341502455,0.84923,41886.0,41866.0,0.387449]
[1646341502652,0.84923,41886.0,41865.0,0.19118746]
[1646341502653,0.044,41884.0,41867.0,0.6955719]
[1646341502853,0.059724,41879.0,41875.0,0.17685403]
[1646341503053,0.059724,41879.0,41871.0,0.12144199]
[1646341503854,0.059724,41879.0,41873.0,0.16529207]
[1646341504055,0.059733,41878.0,41868.0,0.15663814]
[1646341504256,0.059733,41878.0,41869.0,0.363629]
[1646341504456,0.059733,41878.0,41868.0,0.15663814]
[1646341504654,0.059733,41878.0,41869.0,0.32799028]
[1646341505102,0.059724,41879.0,41875.0,0.20392659]
[1646341505399,0.059724,41879.0,41869.0,0.10951567]
[1646341506200,0.059724,41879.0,41875.0,0.1528256]
[1646341506499,0.059724,41879.0,41870.0,0.363629]
[1646341506698,0.059724,41879.0,41869.0,0.10951567]
[1646341506901,0.059724,41879.0,41876.0,0.10089363]
[1646341507099,0.059724,41879.0,41876.0,0.09662242]
[1646341508301,0.060724,41879.0,41876.0,0.09662242]
[1646341509548,0.059724,41879.0,41876.0,0.09662242]
[1646341511447,0.059724,41879.0,41877.0,0.363629]
[1646341511650,0.2312,41886.0,41877.0,0.434659]
[1646341511849,0.6373,41887.0,41877.0,0.434659]
[1646341512050,1.802116,41892.0,41882.0,0.15686845]
[1646341512295,0.286916,41892.0,41882.0,0.15686845]
[1646341512496,0.2125896,41891.0,41883.0,0.2940454]
[1646341512998,0.059716,41892.0,41883.0,0.2940454]
[1646341513196,0.059713,41887.0,41883.0,0.2890454]
[1646341513396,0.059713,41887.0,41883.0,0.1012504]
[1646341513896,0.059713,41887.0,41880.0,0.363629]
[1646341514296,0.060713,41887.0,41880.0,0.363629]
[1646341514497,0.060713,41887.0,41884.0,0.16319475]
[1646341514700,0.060713,41887.0,41885.0,0.363629]
[1646341514896,0.060713,41887.0,41882.0,0.363629]
[1646341515498,0.059713,41887.0,41882.0,0.363629]
[1646341515898,0.059713,41887.0,41882.0,0.51244803]
[1646341516165,0.059713,41887.0,41882.0,0.353629]
[1646341517166,0.059713,41887.0,41884.0,0.15602222]
[1646341517370,0.059713,41887.0,41885.0,0.363629]
[1646341518367,0.060713,41887.0,41885.0,0.363629]
[1646341519572,0.059713,41887.0,41885.0,0.363629]
[1646341520207,0.059713,41887.0,41885.0,0.56265332]
[1646341521103,0.002,41892.0,41888.0,0.28726702]
[1646341521302,0.002,41892.0,41889.0,0.69048542]
[1646341521502,0.059708,41893.0,41891.0,0.363533]
[1646341521704,0.00010254,41897.0,41892.0,0.363533]
[1646341522003,0.6481,41899.0,41890.0,0.19564824]
[1646341522203,0.00014177,41897.0,41890.0,0.19564824]
[1646341522400,0.00228354,41897.0,41893.0,0.16605564]
[1646341522607,0.00242531,41897.0,41893.0,0.16605564]
[1646341522801,0.00242531,41897.0,41895.0,0.0940435]
[1646341523002,0.00228354,41897.0,41896.0,0.363533]
[1646341523203,0.002,41897.0,41896.0,0.363533]
[1646341523849,0.05998356,41898.0,41896.0,0.363533]
[1646341524048,0.06012534,41898.0,41896.0,0.363533]
[1646341524448,0.05998356,41898.0,41896.0,0.363533]
[1646341524648,0.0597,41898.0,41896.0,0.363533]
[1646341525048,0.0597,41898.0,41896.0,0.56096001]
[1646341525650,0.0597,41898.0,41896.0,0.363533]
[1646341528100,0.0597,41898.0,41889.0,0.363533]
[1646341528301,0.0597,41898.0,41888.0,0.17935307]
[1646341528302,0.50607942,41897.0,41888.0,0.17935307]
[1646341528500,0.50607942,41897.0,41889.0,0.363533]
[1646341528901,0.50607942,41897.0,41888.0,0.17921035]
[1646341529100,0.50607942,41897.0,41888.0,0.17913899]
[1646341529300,0.50607942,41897.0,41889.0,0.363533]
[1646341529499,0.50624595,41897.0,41888.0,0.17921035]
[1646341529700,0.50657901,41897.0,41888.0,0.17935307]
[1646341529902,0.119418,41895.0,41889.0,0.363533]
[1646341530101,0.059706,41895.0,41889.0,0.363533]
[1646341530403,0.04001494,41895.0,41888.0,0.17921035]
[1646341530702,0.68905018,41894.0,41888.0,0.17921035]
[1646341530902,0.32551718,41894.0,41888.0,0.09838486]
[1646341531150,0.32551718,41894.0,41888.0,0.09852758]
[1646341531350,0.15866744,41889.0,41888.0,0.09852758]
[1646341531552,0.119444,41890.0,41888.0,0.09852758]
[1646341531754,0.119444,41890.0,41888.0,0.09838486]
[1646341531953,0.119444,41890.0,41888.0,0.0983135]
[1646341532354,0.123444,41890.0,41888.0,0.0983135]
[1646341532556,0.063722,41890.0,41888.0,0.0983135]
[1646341532959,0.057722,41890.0,41888.0,0.0983135]
[1646341533156,0.057722,41890.0,41889.0,0.363533]
[1646341533157,0.004,41890.0,41889.0,0.363533]
[1646341533556,0.059705,41894.0,41889.0,0.363533]
[1646341533958,0.32469988,41893.0,41888.0,0.0855135]
[1646341534356,0.059705,41894.0,41888.0,0.0855135]
[1646341535508,0.059705,41894.0,41892.0,0.17828019]
[1646341535708,0.059705,41894.0,41889.0,0.363533]
[1646341535907,0.059705,41894.0,41888.0,0.0855135]
[1646341536307,0.059705,41894.0,41888.0,0.0855854]
[1646341536706,0.059705,41894.0,41888.0,0.0856573]
[1646341536908,0.059705,41894.0,41888.0,0.0857292]
[1646341537109,0.059705,41894.0,41893.0,0.10519157]
[1646341537309,0.054705,41894.0,41893.0,0.10466471]
[1646341538213,0.054705,41894.0,41893.0,0.29702378]
[1646341538408,0.059705,41894.0,41893.0,0.29702378]
[1646341538651,0.059705,41894.0,41893.0,0.10466471]
[1646341539251,0.059705,41894.0,41888.0,0.0855135]
[1646341539451,0.059705,41894.0,41889.0,0.363533]
[1646341539653,0.119412,41897.0,41889.0,0.363533]
[1646341539654,0.00021924,41897.0,41889.0,0.363533]
[1646341539854,0.00032886,41897.0,41890.0,0.16541059]
[1646341540054,0.00032886,41897.0,41894.0,0.0444959]
[1646341540352,0.059699,41898.0,41896.0,0.56955862]
[1646341540551,0.059699,41898.0,41897.0,0.03189039]
[1646341540756,0.059699,41898.0,41897.0,0.39542339]
[1646341540952,0.059699,41898.0,41897.0,0.363533]
[1646341540953,0.05980862,41898.0,41897.0,0.363533]
[1646341541153,0.05991824,41898.0,41897.0,0.39308377]
[1646341541352,0.06002786,41898.0,41897.0,0.39308377]
[1646341541553,0.06002786,41898.0,41897.0,0.5942933]
[1646341541753,0.05991824,41898.0,41897.0,0.5942933]
[1646341541954,0.059699,41898.0,41897.0,0.5937443]
[1646341542155,0.0465324,41898.0,41897.0,0.5937443]
[1646341542604,0.0465324,41898.0,41897.0,0.60154971]
[1646341542802,0.29495242,41900.0,41897.0,0.92327651]
[1646341542803,0.29506204,41900.0,41897.0,0.92327651]
[1646341543003,0.29506204,41900.0,41897.0,0.91028933]
[1646341543208,0.29495242,41900.0,41898.0,0.07162]
[1646341543406,0.29473318,41900.0,41899.0,0.6852598]
[1646341543603,0.29473318,41900.0,41899.0,0.7330598]
[1646341543902,0.29473318,41900.0,41899.0,0.93219051]
[1646341544102,0.29473318,41900.0,41899.0,0.7330598]
[1646341544303,0.29473318,41900.0,41899.0,0.44963438]
[1646341545308,0.29473318,41900.0,41899.0,0.363533]
[1646341546354,0.29473318,41900.0,41899.0,0.53235701]
[1646341546556,0.29673318,41900.0,41899.0,0.53235701]
[1646341546755,0.29673318,41900.0,41899.0,0.363533]
[1646341547755,0.29473318,41900.0,41899.0,0.363533]
[1646341552605,0.29473318,41900.0,41888.0,0.2855135]
[1646341552802,0.29473318,41900.0,41889.0,0.363533]
[1646341553402,0.29473318,41900.0,41892.0,0.363533]
[1646341553656,0.29473318,41900.0,41893.0,0.5710202]
[1646341554254,0.29473318,41900.0,41896.0,0.11463011]
[1646341554453,0.00023142,41898.0,41897.0,0.363533]
[1646341554656,0.00034713,41898.0,41897.0,0.363533]
[1646341555054,0.00011571,41898.0,41897.0,0.363533]
[1646341555256,0.29573318,41900.0,41897.0,0.363533]
[1646341555656,0.29585973,41900.0,41897.0,0.363533]
[1646341555955,0.29611283,41900.0,41896.0,0.11463011]
[1646341556159,0.29511283,41900.0,41896.0,0.11463011]
[1646341556557,0.29485973,41900.0,41896.0,0.11463011]
[1646341556756,0.29473318,41900.0,41896.0,0.11463011]
[1646341557157,0.29485973,41900.0,41896.0,0.11463011]
[1646341557414,0.29511283,41900.0,41891.0,0.19199777]
[1646341557613,0.29511283,41900.0,41892.0,0.363533]
[1646341558014,0.29485973,41900.0,41892.0,0.363533]
[1646341558213,0.29473318,41900.0,41892.0,0.363533]
[1646341558413,0.29473318,41900.0,41891.0,0.19199777]
[1646341558414,0.29473318,41900.0,41897.0,0.20327214]
[1646341558614,0.00014301,41898.0,41894.0,0.11948239]
[1646341558817,0.00042903,41898.0,41895.0,0.363533]
[1646341559416,0.00014301,41898.0,41895.0,0.363533]
[1646341559616,0.00014301,41898.0,41894.0,0.11948239]
[1646341559617,0.29473318,41900.0,41894.0,0.11948239]
[1646341559817,0.29473318,41900.0,41895.0,0.363533]
[1646341560016,0.00014301,41899.0,41894.0,0.11948239]
[1646341560217,0.00028602,41899.0,41895.0,0.363533]
[1646341560418,0.00042903,41899.0,41895.0,0.363533]
[1646341560819,0.00028602,41899.0,41895.0,0.363533]
[1646341561051,0.29473318,41900.0,41895.0,0.363533]
[1646341561253,0.29473318,41900.0,41896.0,0.17383616]
[1646341561458,0.00013346,41899.0,41896.0,0.17383616]
[1646341561652,0.00040038,41899.0,41894.0,0.11948239]
[1646341561852,0.00040038,41899.0,41895.0,0.363533]
[1646341562252,0.00013346,41899.0,41895.0,0.363533]
[1646341562452,0.29473318,41900.0,41895.0,0.363533]
[1646341562854,0.00029348,41899.0,41897.0,0.15575375]
[1646341563055,0.00044022,41899.0,41897.0,0.363533]
[1646341563255,0.00044022,41899.0,41895.0,0.363533]
[1646341563857,0.00014674,41899.0,41895.0,0.363533]
[1646341564059,0.29473318,41900.0,41895.0,0.363533]
[1646341564255,0.00012424,41899.0,41895.0,0.36344589]
[1646341564456,0.00024848,41899.0,41895.0,0.36344589]
[1646341564655,0.00037272,41899.0,41895.0,0.36344589]
[1646341565101,0.00024848,41899.0,41895.0,0.36344589]
[1646341565307,0.29473318,41900.0,41895.0,0.36344589]
[1646341565704,0.00011096,41899.0,41895.0,0.36344589]
[1646341565911,0.00011096,41899.0,41888.0,0.0855135]
[1646341565912,0.00033288,41899.0,41888.0,0.0855135]
[1646341566310,0.32205968,41899.0,41888.0,0.0855135]
[1646341566509,0.447022,41898.0,41888.0,0.0855135]
[1646341566711,0.494822,41898.0,41888.0,0.0855135]
[1646341567007,0.131335,41898.0,41888.0,0.0855135]
[1646341567207,0.20591358,41891.0,41888.0,0.0855135]
[1646341567407,0.02382,41893.0,41888.0,0.0855135]
[1646341567606,0.0597199,41892.0,41888.0,0.0855135]
[1646341568007,0.02382,41891.0,41888.0,0.0855135]
[1646341568208,0.07162,41890.0,41888.0,0.0855135]
[1646341568652,0.6852138,41889.0,41888.0,0.0855135]
[1646341568851,0.58203509,41889.0,41888.0,0.0855135]
[1646341569452,0.60585509,41889.0,41888.0,0.0855135]
[1646341569652,0.0478,41889.0,41888.0,0.0855135]
[1646341570651,0.0518,41889.0,41888.0,0.0755135]
[1646341571855,0.0478,41889.0,41888.0,0.0755135]
[1646341572706,0.006,41894.0,41888.0,0.4390005]
[1646341572903,0.006,41894.0,41888.0,0.0755135]
[1646341573105,0.006,41894.0,41889.0,0.363487]
[1646341573502,0.006,41894.0,41891.0,0.18859893]
[1646341573702,0.006,41894.0,41893.0,0.15508403]
[1646341574001,0.33165318,41900.0,41893.0,0.15508403]
[1646341574201,0.31973318,41900.0,41893.0,0.10874175]
[1646341574405,0.00013831,41897.0,41893.0,0.10874175]
[1646341574601,0.00041493,41897.0,41893.0,0.10874175]
[1646341574801,0.00041493,41897.0,41894.0,0.363487]
[1646341575003,0.00041493,41897.0,41893.0,0.10874175]
[1646341575201,0.00013831,41897.0,41894.0,0.363487]
[1646341575401,0.059713,41899.0,41893.0,0.10874175]
[1646341575601,0.29973318,41900.0,41893.0,0.10874175]
[1646341575800,0.29473318,41900.0,41893.0,0.10874175]
[1646341576360,0.29473318,41900.0,41896.0,0.363487]
[1646341576361,0.0003333,41897.0,41896.0,0.363487]
[1646341576559,0.0003333,41897.0,41894.0,0.363487]
[1646341576758,0.00016665,41897.0,41893.0,0.10874175]
[1646341576963,0.29473318,41900.0,41893.0,0.10874175]
[1646341577158,0.29473318,41900.0,41888.0,0.06425525]
[1646341577359,0.29473318,41900.0,41897.0,0.13063431]
[1646341577559,0.00016675,41899.0,41888.0,0.06425525]
[1646341577760,0.0003335,41899.0,41889.0,0.363487]
[1646341577960,0.00050025,41899.0,41889.0,0.363487]
[1646341578360,0.0003335,41899.0,41889.0,0.363487]
[1646341578563,0.00016675,41899.0,41889.0,0.363487]
[1646341578762,0.29473318,41900.0,41895.0,0.3011816]
[1646341578962,0.00013419,41897.0,41896.0,0.363487]
[1646341579163,0.00040257,41897.0,41896.0,0.363487]
[1646341579817,0.00013419,41897.0,41896.0,0.363487]
[1646341580017,0.29473318,41900.0,41896.0,0.363487]
[1646341580419,0.00012128,41899.0,41895.0,0.11466422]
[1646341580618,0.00036384,41899.0,41896.0,0.363487]
[1646341581218,0.00012128,41899.0,41896.0,0.363487]
[1646341581419,0.29473318,41900.0,41896.0,0.363487]
[1646341581821,0.29485445,41900.0,41896.0,0.363487]
[1646341582019,0.29509699,41900.0,41896.0,0.363487]
[1646341582222,0.29509699,41900.0,41897.0,0.32120688]
[1646341582421,0.29509699,41900.0,41898.0,0.363487]
[1646341582622,0.29485445,41900.0,41899.0,0.46120688]
[1646341582822,0.29473318,41900.0,41899.0,1.219497]
[1646341585057,0.29473318,41900.0,41899.0,1.28010759]
[1646341585262,0.29473318,41900.0,41899.0,1.32790759]
[1646341585457,0.00031502,41902.0,41901.0,0.363487]
[1646341585656,0.8506,41915.0,41901.0,0.73315984]
[1646341585858,0.8506,41915.0,41906.0,0.363487]
[1646341586057,0.04128,41917.0,41915.0,0.363487]
[1646341586257,0.04128,41917.0,41914.0,0.17336374]
[1646341586258,0.04128,41917.0,41916.0,0.14]
[1646341586559,0.04128,41917.0,41916.0,0.3957416]
[1646341586757,0.11943348,41924.0,41917.0,0.9]
[1646341586957,0.2403,41926.0,41918.0,0.73383184]
[1646341586958,0.35973348,41926.0,41918.0,0.73383184]
[1646341587157,0.5774,41928.0,41918.0,0.73383184]
[1646341587408,0.9746,41933.0,41923.0,0.0706004]
[1646341587607,1.22362,41935.0,41927.0,0.14]
[1646341587807,0.25102,41940.0,41928.0,0.68603184]
[1646341588206,0.2391,41940.0,41928.0,0.68603184]
[1646341588405,0.63582,41943.0,41930.0,0.363487]
[1646341588608,0.6239,41943.0,41938.0,0.363487]
[1646341588805,0.7355,41945.0,41932.0,0.0478]
[1646341589005,0.4347,41946.0,41933.0,0.363487]
[1646341589205,0.45852,41946.0,41933.0,0.3565368]
[1646341589405,0.45852,41946.0,41935.0,0.55337692]
[1646341589606,0.00010392,41940.0,41936.0,0.11422369]
[1646341589807,0.00020784,41940.0,41937.0,0.363321]
[1646341590010,0.00031176,41940.0,41937.0,0.363321]
[1646341590408,0.00010392,41940.0,41937.0,0.363321]
[1646341590610,0.025,41946.0,41937.0,0.363321]
[1646341590807,0.059641,41947.0,41937.0,0.363321]
[1646341591255,0.00025202,41941.0,41937.0,0.363321]
[1646341591455,0.00037803,41941.0,41937.0,0.363321]
[1646341591857,0.00025202,41941.0,41937.0,0.67594118]
[1646341592059,0.6239,41948.0,41937.0,0.411121]
[1646341592660,0.6239,41948.0,41943.0,0.363321]
[1646341592856,0.5768,41952.0,41948.0,0.363321]
[1646341593056,0.5768,41952.0,41947.0,0.20663172]
[1646341593357,0.48598248,41955.0,41947.0,0.20663172]
[1646341593957,0.48598248,41955.0,41942.0,0.20032142]
[1646341594158,0.02397774,41953.0,41941.0,0.0478]
[1646341594358,0.02413548,41953.0,41941.0,0.0478]
[1646341594557,0.02429322,41953.0,41941.0,0.0478]
[1646341594802,0.02429322,41953.0,41942.0,0.006]
[1646341595003,0.02397774,41953.0,41942.0,0.006]
[1646341595209,0.08345684,41950.0,41942.0,0.006]
[1646341595408,0.446787,41947.0,41942.0,0.006]
[1646341595604,0.3213479,41946.0,41942.0,0.006]
[1646341595802,0.3213479,41946.0,41938.0,0.0478]
[1646341595803,0.083466,41947.0,41935.0,0.0478]
[1646341596004,0.3213479,41949.0,41940.0,0.20260209]
[1646341596203,0.06010178,41950.0,41932.0,0.0478]
[1646341596404,0.05964151,41947.0,41933.0,0.0478]
[1646341596603,0.05964151,41947.0,41939.0,0.12185602]
[1646341597204,0.00032894,41943.0,41939.0,0.12185602]
[1646341597408,0.00049341,41943.0,41939.0,0.12185602]
[1646341597606,0.00049341,41943.0,41941.0,0.363321]
[1646341597809,0.00032894,41943.0,41940.0,0.363321]
[1646341598105,0.2428,41949.0,41939.0,0.12185602]
[1646341598953,0.2428,41949.0,41945.0,0.19078726]
[1646341599155,0.363321,41950.0,41946.0,0.1011038]
[1646341599353,0.48598248,41955.0,41946.0,0.1011038]
[1646341599553,0.363321,41954.0,41938.0,0.3213479]
[1646341599752,0.363321,41954.0,41929.0,0.2428]
[1646341599753,0.363321,41952.0,41934.0,0.0478]
[1646341599953,0.363321,41949.0,41934.0,0.0478]
[1646341600154,0.02382,41948.0,41934.0,0.0478]
[1646341600359,0.11928713,41949.0,41934.0,0.23473841]
[1646341600553,0.363321,41948.0,41940.0,0.09349694]
[1646341600752,0.363321,41948.0,41940.0,0.27133049]
[1646341600953,0.05964357,41945.0,41940.0,0.27133049]
[1646341601153,0.363321,41944.0,41940.0,0.27133049]
[1646341601353,0.05964357,41945.0,41940.0,0.27133049]
[1646341601553,0.00015635,41946.0,41940.0,0.27133049]
[1646341601753,0.0003127,41946.0,41940.0,0.27133049]
[1646341601954,0.00046905,41946.0,41940.0,0.27133049]
[1646341602153,0.363321,41945.0,41940.0,0.27133049]
[1646341602401,0.363321,41945.0,41940.0,0.09349694]
[1646341602605,0.363321,41945.0,41930.0,0.0478]
[1646341602802,0.05964315,41945.0,41930.0,0.0478]
[1646341603011,0.05964315,41945.0,41932.0,0.16389774]
[1646341603203,0.05997943,41945.0,41932.0,0.16389774]
[1646341603403,0.06014757,41945.0,41932.0,0.16389774]
[1646341603707,0.06014757,41945.0,41938.0,0.16096921]
[1646341603904,0.05981129,41945.0,41938.0,0.16096921]
[1646341604103,0.05964315,41945.0,41938.0,0.16096921]
[1646341604503,0.05964315,41945.0,41936.0,0.13033989]
[1646341604504,0.05916315,41945.0,41936.0,0.13033989]
[1646341604703,0.00024414,41944.0,41936.0,0.13033989]
[1646341604904,0.00036621,41944.0,41930.0,0.0478]
[1646341605105,0.00036621,41944.0,41924.0,0.025]
[1646341605106,0.05964938,41941.0,41924.0,0.025]
[1646341605310,0.28224381,41940.0,41923.0,0.18490758]
[1646341605507,0.05964938,41941.0,41928.0,0.19228402]
[1646341605703,0.01192,41942.0,41928.0,0.19228402]
[1646341605704,0.363321,41940.0,41928.0,0.19228402]
[1646341605903,0.01192,41942.0,41931.0,0.11222802]
[1646341605904,0.363321,41941.0,41931.0,0.11222802]
[1646341606166,0.00021688,41934.0,41931.0,0.11222802]
[1646341606363,0.01192,41942.0,41940.0,0.64002068]
[1646341606364,0.42297096,41941.0,41940.0,0.64002068]
[1646341606763,0.42256096,41941.0,41940.0,0.64002068]
[1646341606964,0.42185206,41941.0,41940.0,0.64002068]
[1646341607364,0.63728102,41941.0,41940.0,0.64002068]
[1646341607667,1.263321,41940.0,41918.0,0.21132263]
[1646341607867,1.263321,41940.0,41915.0,0.32034022]
[1646341607868,0.363321,41933.0,41915.0,0.32034022]
[1646341608067,0.07162,41934.0,41916.0,0.32034022]
[1646341608268,0.02382,41932.0,41924.0,0.12938632]
[1646341608466,0.387141,41931.0,41924.0,0.12938632]
[1646341608665,0.363321,41930.0,41928.0,0.14]
[1646341608867,0.2492,41935.0,41929.0,0.14]
[1646341609166,0.00029142,41936.0,41924.0,0.44972654]
[1646341609366,0.00043713,41936.0,41927.0,0.2044605]
[1646341609565,0.00043713,41936.0,41931.0,0.10852819]
[1646341609811,0.01192,41939.0,41931.0,0.10852819]
[1646341609812,0.19574762,41938.0,41931.0,0.10852819]
[1646341610014,0.2413,41942.0,41931.0,0.10852819]
[1646341610817,0.2433,41942.0,41931.0,0.10852819]
[1646341611016,0.15826665,41937.0,41931.0,0.10852819]
[1646341611217,0.21792128,41937.0,41931.0,0.1083279]
[1646341611417,0.05965463,41937.0,41931.0,0.1083279]
[1646341613570,0.16136197,41935.0,41931.0,0.1083279]
[1646341613765,0.00033672,41936.0,41931.0,0.2751932]
[1646341613967,0.00050508,41936.0,41931.0,0.2701932]
[1646341614166,0.00033672,41936.0,41931.0,0.2701932]
[1646341614366,0.059653,41939.0,41931.0,0.2701932]
[1646341614565,0.059653,41939.0,41931.0,0.1033279]
[1646341614768,0.2381951,41939.0,41931.0,0.1033279]
[1646341614966,0.00015458,41937.0,41931.0,0.1033279]
[1646341615168,0.00030916,41937.0,41931.0,0.1033279]
[1646341615367,0.00046374,41937.0,41931.0,0.1033279]
[1646341615568,0.00046374,41937.0,41932.0,0.20733521]
[1646341615768,0.00030916,41937.0,41931.0,0.1033279]
[1646341615966,0.2413,41942.0,41931.0,0.1033279]
[1646341616568,0.00030916,41936.0,41931.0,0.1033279]
[1646341616768,0.00046374,41936.0,41931.0,0.1033279]
[1646341617168,0.00030916,41936.0,41931.0,0.1033279]
[1646341617413,0.30094903,41942.0,41939.0,0.10281799]
[1646341617612,0.07156903,41942.0,41939.0,0.10281799]
[1646341618013,0.05964903,41942.0,41939.0,0.10281799]
[1646341618211,0.363321,41941.0,41939.0,0.10281799]
[1646341618413,0.1585071,41940.0,41939.0,0.10281799]
[1646341618612,0.363321,41941.0,41939.0,0.10281799]
[1646341619214,0.0597677,41942.0,41939.0,0.10281799]
[1646341619413,0.00023734,41942.0,41939.0,0.10281799]
[1646341619612,0.00035601,41942.0,41939.0,0.10281799]
[1646341620012,0.00035601,41942.0,41939.0,0.10220899]
[1646341620216,0.00011867,41942.0,41939.0,0.10220899]
[1646341620413,0.059647,41943.0,41932.0,0.35463567]
[1646341620613,0.05976567,41943.0,41932.0,0.18089312]
[1646341620813,0.06464846,41942.0,41932.0,0.18089312]
[1646341621262,0.005,41942.0,41932.0,0.18089312]
[1646341621459,0.005,41942.0,41935.0,0.10947342]
[1646341621660,0.005,41942.0,41925.0,0.03574]
[1646341621862,0.005,41942.0,41925.0,0.01192]
[1646341621863,0.0646488,41942.0,41925.0,0.01192]
[1646341622059,0.32199529,41941.0,41922.0,0.01192]
[1646341622259,0.32214978,41941.0,41922.0,0.01192]
[1646341622458,0.32230427,41941.0,41923.0,0.363321]
[1646341622659,0.32230427,41941.0,41933.0,0.10105861]
[1646341622862,0.00030898,41941.0,41933.0,0.10105861]
[1646341623061,0.0596488,41942.0,41933.0,0.10105861]
[1646341623566,0.3814908,41943.0,41923.0,0.01192]
[1646341623567,0.02382,41938.0,41923.0,0.01192]
[1646341623763,0.02382,41938.0,41918.0,0.5]
[1646341623764,0.10745632,41937.0,41918.0,0.5]
[1646341623961,0.3218408,41936.0,41918.0,0.5]
[1646341624163,0.3696408,41936.0,41918.0,0.5]
[1646341624564,0.3696408,41936.0,41927.0,0.2825614]
[1646341624807,0.3696408,41936.0,41927.0,0.12822058]
[1646341625008,0.363321,41935.0,41927.0,0.12822058]
[1646341625409,0.3698506,41936.0,41927.0,0.12822058]
[1646341625410,0.05966211,41932.0,41927.0,0.12822058]
[1646341625710,0.3699555,41936.0,41927.0,0.12814537]
[1646341625909,0.15899652,41934.0,41927.0,0.29582707]
[1646341626112,0.15899652,41934.0,41927.0,0.12814537]
[1646341626710,0.16099652,41934.0,41927.0,0.12814537]
[1646341627410,0.16099652,41934.0,41927.0,0.12314537]
[1646341628010,0.15899652,41934.0,41927.0,0.12314537]
[1646341629261,0.3696408,41936.0,41927.0,0.12314537]
[1646341629464,0.28434,41938.0,41935.0,0.12836486]
[1646341629661,0.3575808,41938.0,41926.0,0.18124951]
[1646341629864,0.00029754,41936.0,41917.0,0.2275]
[1646341630066,0.00029754,41936.0,41918.0,0.363321]
[1646341630067,0.00044631,41936.0,41918.0,0.363321]
[1646341630464,0.00014877,41936.0,41918.0,0.363321]
[1646341630664,0.26582,41937.0,41930.0,0.12850045]
[1646341630865,0.19011526,41934.0,41930.0,0.12850045]
[1646341631067,0.19011526,41934.0,41930.0,0.11751149]
[1646341633310,0.02382,41935.0,41930.0,0.11751149]
[1646341634610,0.19300597,41935.0,41930.0,0.11751149]
[1646341634809,0.363321,41934.0,41930.0,0.11751149]
[1646341635009,0.363321,41934.0,41925.0,0.16521064]
[1646341635210,0.19300597,41935.0,41925.0,0.16521064]
[1646341636263,0.19300597,41935.0,41925.0,0.09259062]
[1646341636663,0.51484677,41935.0,41925.0,0.09259062]
[1646341636862,0.51784677,41935.0,41925.0,0.09259062]
[1646341637062,0.49402677,41935.0,41925.0,0.09259062]
[1646341637264,0.49402677,41935.0,41926.0,0.6851618]
[1646341637265,0.003,41935.0,41926.0,0.6851618]
[1646341638064,0.04882,41943.0,41926.0,0.6851618]
[1646341638267,0.21678482,41938.0,41932.0,0.11162048]
[1646341638465,0.00013568,41936.0,41930.0,0.209565]
[1646341638666,0.00040704,41936.0,41921.0,0.363321]
[1646341638864,0.00040704,41936.0,41923.0,0.363321]
[1646341639266,0.00013568,41936.0,41926.0,0.16887392]
[1646341639468,0.22078482,41938.0,41926.0,0.12001683]
[1646341639808,0.22078482,41938.0,41927.0,0.18606158]
[1646341640008,0.00031568,41936.0,41926.0,0.12001683]
[1646341640209,0.00047352,41936.0,41926.0,0.12001683]
[1646341640609,0.00031568,41936.0,41926.0,0.12001683]
[1646341640808,0.21678482,41938.0,41926.0,0.12001683]
[1646341641209,0.07157213,41939.0,41934.0,0.11147765]
[1646341641411,0.00031568,41936.0,41934.0,0.11147765]
[1646341641612,0.00047352,41936.0,41934.0,0.11147765]
[1646341641908,0.00047352,41936.0,41928.0,0.3218408]
[1646341642111,0.00015784,41936.0,41925.0,0.15235309]
[1646341642310,0.02382,41938.0,41919.0,0.3218408]
[1646341642510,0.02382,41938.0,41923.0,0.07478459]
[1646341642712,0.00010783,41936.0,41924.0,0.3218408]
[1646341642912,0.00021566,41936.0,41928.0,0.12436755]
[1646341643110,0.00032349,41936.0,41928.0,0.12436755]
[1646341643311,0.16263216,41935.0,41928.0,0.12436755]
[1646341643556,0.00032349,41936.0,41928.0,0.12436755]
[1646341643557,0.00021566,41936.0,41928.0,0.12436755]
[1646341643758,0.02382,41938.0,41929.0,0.21234231]
[1646341643961,0.05965213,41939.0,41929.0,0.21234231]
[1646341644162,0.36343934,41936.0,41935.0,0.11093508]
[1646341644359,0.36367602,41936.0,41935.0,0.11093508]
[1646341644959,0.37036617,41936.0,41935.0,0.11093508]
[1646341645159,0.37024783,41936.0,41935.0,0.11093508]
[1646341646361,0.58005754,41936.0,41935.0,0.11093508]
[1646341646562,0.21680971,41936.0,41925.0,0.21285861]
[1646341646764,0.20980971,41936.0,41927.0,0.18067373]
[1646341646962,0.21680971,41936.0,41925.0,0.21285861]
[1646341647808,0.21680971,41936.0,41927.0,0.11215348]
[1646341648007,0.20980971,41936.0,41927.0,0.11215348]
[1646341648408,0.21011057,41936.0,41927.0,0.11215348]
[1646341648608,0.210261,41936.0,41927.0,0.11215348]
[1646341648808,0.213261,41936.0,41927.0,0.11215348]
[1646341649211,0.21296014,41936.0,41927.0,0.11215348]
[1646341649414,0.21280971,41936.0,41927.0,0.11215348]
[1646341649813,0.21291622,41936.0,41927.0,0.11215348]
[1646341650014,0.21312924,41936.0,41927.0,0.11215348]
[1646341650214,0.00331953,41936.0,41927.0,0.11215348]
[1646341650612,0.00010651,41936.0,41927.0,0.11215348]
[1646341650815,0.003,41936.0,41927.0,0.11215348]
[1646341651260,0.0031203,41936.0,41927.0,0.11215348]
[1646341651560,0.0033609,41936.0,41927.0,0.11215348]
[1646341651964,0.0032406,41936.0,41927.0,0.11215348]
[1646341652264,0.05965213,41939.0,41927.0,0.11215348]